Workbook

Sheet Sheet1
A1: 165.3291035 | B1: 58.92539333 | C1: =$K$1*A1+$K$2 -> 71.23775519 | D1: =(ABS(B1-C1))^2 -> 151.5942546 | F1: 148 | G1: =$K$1*F1+$K$2 -> 61.6096797 | H1: gap | I1: 기울기 | J1: w1 | K1: 0.5556014776 | L1: m1(+) | N1: w1 | O1: 0.5556014776
A2: 150.7419956 | B2: 49.31095044 | C2: =$K$1*A2+$K$2 -> 63.13313649 | D2: =(ABS(B2-C2))^2 -> 191.0528272 | F2: =F1+$H$2 -> 148.18 | G2: =$K$1*F2+$K$2 -> 61.70968796 | H2: 0.18 | I2: 절편 | J2: w2 | K2: -20.61933899 | L2: m2(-) | N2: w2 | O2: -20.61933899
A3: 159.79738 | B3: 57.99475165 | C3: 68.16432144 | D3: 103.4201498 | F3: =F2+$H$2 -> 148.36 | G3: 61.80969623
A4: 169.3500388 | B4: 63.60495229 | C4: 73.47179279 | D4: 97.3545414 | F4: 148.54 | G4: 61.9097045 | J4: sum | K4: 28771.85328
A5: 162.8117609 | B5: 58.56366085 | C5: 69.83911594 | D5: 127.1358876 | F5: 148.72 | G5: 62.00971276 | J5: sum0 | K5: =SUM(D:D) -> 28771.85328
A6: 156.3573968 | B6: 51.62305863 | C6: 66.25306173 | D6: 214.0369907 | F6: 148.9 | G6: 62.10972103
A7: 164.7793508 | B7: 57.79812794 | C7: 70.93231177 | D7: 172.506785 | F7: 149.08 | G7: 62.20972929
A8: 164.1780102 | B8: 57.9229995 | C8: 70.59820609 | D8: 160.6608621 | F8: 149.26 | G8: 62.30973756
A9: 176.1756134 | B9: 67.57331952 | C9: 77.26409214 | D9: 93.91107403 | F9: 149.44 | G9: 62.40974583
A10: 155.8410537 | B10: 53.91297511 | C10: 65.96618073 | D10: 145.2797658 | F10: 149.62 | G10: 62.50975409
A11: 153.0131221 | B11: 47.72323243 | C11: 64.39497774 | D11: 277.9470917 | F11: 149.8 | G11: 62.60976236
A12: 174.2096865 | B12: 69.05198177 | C12: 76.17182026 | D12: 50.69210012 | F12: 149.98 | G12: 62.70977062
A13: 169.8103094 | B13: 60.57862731 | C13: 73.72751983 | D13: 172.8933747 | F13: 150.16 | G13: 62.80977889
A14: 158.6998022 | B14: 51.69231564 | C14: 67.55450559 | D14: 251.6090698 | F14: 150.34 | G14: 62.90978716
A15: 150.0602174 | B15: 45.48958068 | C15: 62.75433952 | D15: 298.0718978 | F15: 150.52 | G15: 63.00979542
A16: 159.4987786 | B16: 55.18631644 | C16: 67.99841807 | D16: 164.1499482 | F16: 150.7 | G16: 63.10980369
A17: 174.1992474 | B17: 63.44906718 | C17: 76.16602024 | D17: 161.7208953 | F17: 150.88 | G17: 63.20981195
A18: 169.2842281 | B18: 64.5363287 | C18: 73.43522827 | D18: 79.19041358 | F18: 151.06 | G18: 63.30982022
A19: 165.0759101 | B19: 62.32348579 | C19: 71.09708058 | D19: 76.9759655 | F19: 151.24 | G19: 63.40982849
A20: 172.4427474 | B20: 65.09861063 | C20: 75.19010625 | D20: 101.8382839 | F20: 151.42 | G20: 63.50983675
A21: 150.9195757 | B21: 51.2281407 | C21: 63.23180027 | D21: 144.087843 | F21: 151.6 | G21: 63.60984502
A22: 171.7886674 | B22: 65.5067714 | C22: 74.82669848 | D22: 86.86104084 | F22: 151.78 | G22: 63.70985328 | J22: 키 | K22: 몸무게
A23: 175.8092237 | B23: 63.83361444 | C23: 77.06052545 | D23: 174.9511749 | F23: 151.96 | G23: 63.80986155 | J23: 155 | K23: =$K$1*J23+$K$2 -> 65.49889004 | L23: 65.49889004
A24: 162.7828038 | B24: 58.32669722 | C24: 69.82302732 | D24: 132.1656056 | F24: 152.14 | G24: 63.90986982 | J24: 159 | K24: =$K$1*J24+$K$2 -> 67.72129595 | L24: 67.72129595
A25: 157.6421928 | B25: 55.35221226 | C25: 66.96689629 | D25: 134.9008851 | F25: 152.32 | G25: 64.00987808 | J25: 167 | K25: 72.16610777 | L25: 72.16610777
A26: 175.2512062 | B26: 65.89661698 | C26: 76.75049011 | D26: 117.8065619 | F26: 152.5 | G26: 64.10988635 | J26: 170 | K26: 73.83291221 | L26: 73.83291221
A27: 173.6029315 | B27: 63.4868716 | C27: 75.83470627 | D27: 152.469021 | F27: 152.68 | G27: 64.20989461 | J27: 178 | K27: 78.27772403 | L27: 78.27772403
A28: 172.6039088 | B28: 67.91665054 | C28: 75.27964777 | D28: 54.21372816 | F28: 152.86 | G28: 64.30990288
A29: 153.1317472 | B29: 50.87314041 | C29: 64.46088605 | D29: 184.6268316 | F29: 153.04 | G29: 64.40991115
A30: 168.5536802 | B30: 62.98088674 | C30: 73.02933478 | D30: 100.9713081 | F30: 153.22 | G30: 64.50991941
A31: 178.3935571 | B31: 71.51063629 | C31: 78.49638492 | D31: 48.80068395 | F31: 153.4 | G31: 64.60992768
A32: 171.3347733 | B32: 67.79980261 | C32: 74.57451423 | D32: 45.89671742 | F32: 153.58 | G32: 64.70993594
A33: 162.2466373 | B33: 55.94475051 | C33: 69.52513246 | D33: 184.426774 | F33: 153.76 | G33: 64.80994421
A34: 165.4216754 | B34: 59.21932142 | C34: 71.28918832 | D34: 145.681687 | F34: 153.94 | G34: 64.90995248
A35: 163.7113738 | B35: 61.03838929 | C35: 70.3389422 | D35: 86.50028454 | F35: 154.12 | G35: 65.00996074
A36: 160.7478583 | B36: 53.72263401 | C36: 68.6924086 | D36: 224.0941512 | F36: 154.3 | G36: 65.10996901
A37: 170.9390116 | B37: 67.98579284 | C37: 74.35462842 | D37: 40.56206674 | F37: 154.48 | G37: 65.20997727
A38: 159.4245279 | B38: 59.37015834 | C38: 67.95716427 | D38: 73.73667095 | F38: 154.66 | G38: 65.30998554
A39: 161.6804051 | B39: 58.37213893 | C39: 69.21053301 | D39: 117.4707862 | F39: 154.84 | G39: 65.40999381
A40: 159.9593747 | B40: 52.79959951 | C40: 68.25432593 | D40: 238.8485687 | F40: 155.02 | G40: 65.51000207
A41: 171.2547684 | B41: 66.91911952 | C41: 74.53006337 | D41: 57.92646625 | F41: 155.2 | G41: 65.61001034
A42: 168.9753234 | B42: 66.17896086 | C42: 73.2636004 | D42: 50.19211735 | F42: 155.38 | G42: 65.7100186
A43: 158.0184245 | B43: 52.50822309 | C43: 67.17593116 | D43: 215.1416602 | F43: 155.56 | G43: 65.81002687
A44: 160.4292834 | B44: 53.38462615 | C44: 68.51540791 | D44: 228.9405568 | F44: 155.74 | G44: 65.91003514
A45: 176.3335562 | B45: 63.62656509 | C45: 77.35184538 | D45: 188.3833189 | F45: 155.92 | G45: 66.0100434
A46: 162.330898 | B46: 61.47805819 | C46: 69.57194783 | D46: 65.51104957 | F46: 156.1 | G46: 66.11005167
A47: 167.0369554 | B47: 62.33048013 | C47: 72.18664022 | D47: 97.14389184 | F47: 156.28 | G47: 66.21005993
A48: 170.9612954 | B48: 67.05578854 | C48: 74.36700933 | D48: 53.45394945 | F48: 156.46 | G48: 66.3100682
A49: 175.4087734 | B49: 64.10189779 | C49: 76.83803471 | D49: 162.2091836 | F49: 156.64 | G49: 66.41007647
A50: 162.5918376 | B50: 55.93958299 | C50: 69.71692626 | D50: 189.8151875 | F50: 156.82 | G50: 66.51008473
A51: 156.6412711 | B51: 54.14364137 | C51: 66.4107827 | D51: 150.4827563 | F51: 157 | G51: 66.610093
A52: 172.7028716 | B52: 66.71551722 | C52: 75.33463164 | D52: 74.2891333 | F52: 157.18 | G52: 66.71010126
A53: 178.8075686 | B53: 71.19032406 | C53: 78.72641031 | D53: 56.79259593 | F53: 157.36 | G53: 66.81010953
A54: 172.7024782 | B54: 61.10147283 | C54: 75.33441307 | D54: 202.5765878 | F54: 157.54 | G54: 66.9101178
A55: 153.3303952 | B55: 54.00353102 | C55: 64.57125516 | D55: 111.6767936 | F55: 157.72 | G55: 67.01012606
A56: 164.1452229 | B56: 56.69206385 | C56: 70.5799894 | D56: 192.874476 | F56: 157.9 | G56: 67.11013433
A57: 172.95084 | B57: 64.9697728 | C57: 75.47240327 | D57: 110.3052468 | F57: 158.08 | G57: 67.21014259
A58: 160.4509056 | B58: 60.14962525 | C58: 68.52742123 | D58: 70.18746551 | F58: 158.26 | G58: 67.31015086
A59: 167.1971011 | B59: 57.26449916 | C59: 72.27561745 | D59: 225.3336722 | F59: 158.44 | G59: 67.41015913
A60: 176.1233103 | B60: 71.31273011 | C60: 77.23503247 | D60: 35.0736653 | F60: 158.62 | G60: 67.51016739
A61: 165.3532362 | B61: 57.65923694 | C61: 71.25116337 | D61: 184.7404642 | F61: 158.8 | G61: 67.61017566
A62: 163.4689558 | B62: 61.415486 | C62: 70.20425437 | D62: 77.24244952 | F62: 158.98 | G62: 67.71018392
A63: 176.9279122 | B63: 69.8261465 | C63: 77.68207048 | D63: 61.71554163 | F63: 159.16 | G63: 67.81019219
A64: 166.8158448 | B64: 60.4113352 | C64: 72.06379086 | D64: 135.7797229 | F64: 159.34 | G64: 67.91020046
A65: 169.6231556 | B65: 60.02883608 | C65: 73.6235369 | D65: 184.8158903 | F65: 159.52 | G65: 68.01020872
A66: 154.2322147 | B66: 54.99432581 | C66: =$K$1*A66+$K$2 -> 65.07230739 | D66: =(ABS(B66-C66))^2 -> 101.5657128 | F66: 159.7 | G66: =$K$1*F66+$K$2 -> 68.11021699
A67: 174.803102 | B67: 63.12943587 | C67: 76.50152278 | D67: 178.8127083 | F67: =F66+$H$2 -> 159.88 | G67: 68.21022525
A68: 156.7452872 | B68: 51.60936619 | C68: 66.46857418 | D68: 220.7960622 | F68: 160.06 | G68: 68.31023352
A69: 160.4627466 | B69: 54.2873614 | C69: 68.53400014 | D69: 202.9667154 | F69: 160.24 | G69: 68.41024179
A70: 175.0600183 | B70: 66.17878022 | C70: 76.64426585 | D70: 109.5263896 | F70: 160.42 | G70: 68.51025005
A71: 151.6966939 | B71: 51.31699831 | C71: 63.66356829 | D71: 152.4377902 | F71: 160.6 | G71: 68.61025832
A72: 153.7778485 | B72: 47.9373624 | C72: 64.81986085 | D72: 285.0187539 | F72: 160.78 | G72: 68.71026658
A73: 178.6679077 | B73: 73.36309073 | C73: 78.64881454 | D73: 27.93887617 | F73: 160.96 | G73: 68.81027485
A74: 173.1154525 | B74: 62.47481516 | C74: 75.56386223 | D74: 171.3231534 | F74: 161.14 | G74: 68.91028311
A75: 172.0764613 | B75: 64.70587016 | C75: 74.98659718 | D75: 105.6933481 | F75: 161.32 | G75: 69.01029138
A76: 168.1234896 | B76: 60.26830658 | C76: 72.79032027 | D76: 156.8008267 | F76: 161.5 | G76: 69.11029965
A77: 166.1282873 | B77: 60.56828615 | C77: 71.68178292 | D77: 123.5098103 | F77: 161.68 | G77: 69.21030791
A78: 165.4053533 | B78: 63.33599966 | C78: 71.28011972 | D78: 63.10904353 | F78: 161.86 | G78: 69.31031618
A79: 179.0039277 | B79: 71.88628708 | C79: 78.83550775 | D79: 48.29166782 | F79: 162.04 | G79: 69.41032444
A80: 167.3359215 | B80: 63.76695269 | C80: 72.35274627 | D80: 73.71585132 | F80: 162.22 | G80: 69.51033271
A81: 160.8272839 | B81: 58.25491017 | C81: 68.73653757 | D81: 109.8645129 | F81: 162.4 | G81: 69.61034098
A82: 163.7803066 | B82: 54.82216854 | C82: 70.37724135 | D82: 241.9602901 | F82: 162.58 | G82: 69.71034924
A83: 159.1343665 | B83: 53.26179922 | C83: 67.79595019 | D83: 211.2415443 | F83: 162.76 | G83: 69.81035751
A84: 151.3126051 | B84: 45.95535795 | C84: 63.45016801 | D84: 306.0683791 | F84: 162.94 | G84: 69.91036577
A85: 161.8420458 | B85: 54.04297085 | C85: 69.30034079 | D85: 232.7873373 | F85: 163.12 | G85: 70.01037404
A86: 159.9346483 | B86: 58.39144899 | C86: 68.24058792 | D86: 97.00553754 | F86: 163.3 | G86: 70.11038231
A87: 157.7168012 | B87: 58.02599901 | C87: 67.00834878 | D87: 80.68260752 | F87: 163.48 | G87: 70.21039057
A88: 167.2947514 | B88: 63.12561326 | C88: 72.32987209 | D88: 84.71838062 | F88: 163.66 | G88: 70.31039884
A89: 174.3434715 | B89: 67.79265087 | C89: 76.24615141 | D89: 71.4616713 | F89: 163.84 | G89: 70.4104071
A90: 170.4064643 | B90: 60.22046011 | C90: 74.05874439 | D90: 191.498112 | F90: 164.02 | G90: 70.51041537
A91: 173.5940051 | B91: 66.26848643 | C91: 75.82974676 | D91: 91.41769903 | F91: 164.2 | G91: 70.61042364
A92: 174.8673213 | B92: 66.59046654 | C92: 76.53720309 | D92: 98.93756785 | F92: 164.38 | G92: 70.7104319
A93: 164.5962095 | B93: 57.51854953 | C93: 70.83055823 | D93: 177.2095758 | F93: 164.56 | G93: 70.81044017
A94: 161.5775907 | B94: 59.5505364 | C94: 69.15340916 | D94: 92.21516528 | F94: 164.74 | G94: 70.91044843
A95: 174.2025018 | B95: 68.32884574 | C95: 76.1678284 | D95: 61.44964921 | F95: 164.92 | G95: 71.0104567
A96: 150.9590256 | B96: 46.3395138 | C96: 63.25371871 | D96: 286.0903277 | F96: 165.1 | G96: 71.11046497
A97: 164.9586582 | B97: 57.25688362 | C97: 71.03193526 | D97: 189.7520479 | F97: 165.28 | G97: 71.21047323
A98: 154.6736133 | B98: 50.17872482 | C98: 65.31754911 | D98: 229.184001 | F98: 165.46 | G98: 71.3104815
A99: 170.5725646 | B99: 67.25562881 | C99: 74.15102995 | D99: 47.5465568 | F99: 165.64 | G99: 71.41048976
A100: 164.8423254 | B100: 56.39978228 | C100: 70.96730061 | D100: 212.2125903 | F100: 165.82 | G100: 71.51049803
A101: 168.882966 | B101: 63.49867821 | C101: =$K$1*A101+$K$2 -> 73.21228649 | D101: 94.35418577 | F101: 166 | G101: =$K$1*F101+$K$2 -> 71.6105063
A102: 150.7638681 | B102: 51.93470424 | C102: 63.1452889 | D102: 125.6772084 | F102: 166.18 | G102: 71.71051456
A103: 172.328217 | B103: 66.21545156 | C103: 75.12647303 | D103: 79.40630358 | F103: 166.36 | G103: 71.81052283
A104: 153.1334317 | B104: 50.40107088 | C104: 64.46182192 | D104: 197.7047198 | F104: 166.54 | G104: 71.91053109
A105: 175.9150314 | B105: 63.59389346 | C105: 77.11931241 | D105: 182.9369578 | F105: 166.72 | G105: 72.01053936
A106: 175.761441 | B106: 67.54834495 | C106: 77.03397734 | D106: 89.9772217 | F106: 166.9 | G106: 72.11054763
A107: 172.6872325 | B107: 61.68680758 | C107: 75.32594255 | D107: 186.0260027 | F107: 167.08 | G107: 72.21055589
A108: 174.7923052 | B108: 67.43813033 | C108: 76.49552407 | D108: 82.03638138 | F108: 167.26 | G108: 72.31056416
A109: 176.6945028 | B109: 71.91231263 | C109: 77.55238787 | D109: 31.81044874 | F109: 167.44 | G109: 72.41057242
A110: 175.4231679 | B110: 64.2461419 | C110: 76.84603233 | D110: 158.7572388 | F110: 167.62 | G110: 72.51058069
A111: 163.4611344 | B111: 59.12238541 | C111: 70.19990884 | D111: 122.7115252 | F111: 167.8 | G111: 72.61058896
A112: 156.1226571 | B112: 53.03566674 | C112: 66.12263996 | D112: 171.2688682 | F112: 167.98 | G112: 72.71059722
A113: 167.9547787 | B113: 58.33030305 | C113: 72.69658421 | D113: 206.3900344 | F113: 168.16 | G113: 72.81060549
A114: 150.3496349 | B114: 47.07495052 | C114: 62.91514031 | D114: 250.9116126 | F114: 168.34 | G114: 72.91061375
A115: 150.0551963 | B115: 45.43486629 | C115: 62.75154979 | D115: 299.8675273 | F115: 168.52 | G115: 73.01062202
A116: 175.7719481 | B116: 69.6344566 | C116: 77.0398151 | D116: 54.83933454 | F116: 168.7 | G116: 73.11063029
A117: 167.5230074 | B117: 59.34071316 | C117: 72.45669145 | D117: 172.0288865 | F117: 168.88 | G117: 73.21063855
A118: 170.9851778 | B118: 61.43223264 | C118: 74.38027842 | D118: 167.6518896 | F118: 169.06 | G118: 73.31064682
A119: 166.4684415 | B119: 61.74518479 | C119: 71.87077308 | D119: 102.5275382 | F119: 169.24 | G119: 73.41065508
A120: 179.7313893 | B120: 68.43915211 | C120: 79.23968647 | D120: 116.6515426 | F120: 169.42 | G120: 73.51066335
A121: 169.3200874 | B121: 62.84059655 | C121: 73.45515178 | D121: 112.6687827 | F121: 169.6 | G121: 73.61067162
A122: 152.6178825 | B122: 46.96691154 | C122: 64.17538203 | D122: 296.1314569 | F122: 169.78 | G122: 73.71067988
A123: 170.2936435 | B123: 59.52702592 | C123: 73.99606096 | D123: 209.3529749 | F123: 169.96 | G123: 73.81068815
A124: 176.3359416 | B124: 70.2505711 | C124: 77.3531707 | D124: 50.44692105 | F124: 170.14 | G124: 73.91069641
A125: 158.3606672 | B125: 57.78730591 | C125: 67.36608172 | D125: 91.7529461 | F125: 170.32 | G125: 74.01070468
A126: 170.379585 | B126: 64.98720361 | C126: 74.04381021 | D126: 82.02212307 | F126: 170.5 | G126: 74.11071295
A127: 177.7173257 | B127: 65.88579432 | C127: 78.12066976 | D127: 149.6921771 | F127: 170.68 | G127: 74.21072121
A128: 161.2643158 | B128: 53.88811749 | C128: 68.97935318 | D128: 227.7453946 | F128: 170.86 | G128: 74.31072948
A129: 155.7531452 | B129: 54.74898951 | C129: 65.91733864 | D129: 124.7320222 | F129: 171.04 | G129: 74.41073774
A130: 174.2458713 | B130: 67.79444407 | C130: 76.19192458 | D130: =(ABS(B130-C130))^2 -> 70.51767883 | F130: 171.22 | G130: 74.51074601
A131: 158.5197616 | B131: 55.21559215 | C131: 67.45447477 | D131: 149.7902478 | F131: =F130+$H$2 -> 171.4 | G131: 74.61075428
A132: 162.5389731 | B132: 54.13731775 | C132: 69.68755463 | D132: 241.8098672 | F132: 171.58 | G132: 74.71076254
A133: 173.6996698 | B133: 64.77144525 | C133: 75.88845424 | D133: 123.5878888 | F133: 171.76 | G133: 74.81077081
A134: 154.0360773 | B134: 51.87405131 | C134: 64.96333314 | D134: 171.3292989 | F134: 171.94 | G134: 74.91077907
A135: 171.0749745 | B135: 66.67027015 | C135: 74.43016965 | D135: 60.21604019 | F135: 172.12 | G135: 75.01078734
A136: 165.5261242 | B136: 59.97395339 | C136: 71.34722022 | D136: 129.3511985 | F136: 172.3 | G136: 75.11079561
A137: 170.4961395 | B137: 63.10750315 | C137: 74.10856806 | D137: 121.0234292 | F137: 172.48 | G137: 75.21080387
A138: 154.4132888 | B138: 50.23197412 | C138: 65.17291245 | D138: 223.2316382 | F138: 172.66 | G138: 75.31081214
A139: 167.350738 | B139: 59.54803811 | C139: 72.36097835 | D139: 164.1714375 | F139: 172.84 | G139: 75.4108204
A140: 157.9357302 | B140: 52.20328702 | C140: 67.12998609 | D140: 222.806345 | F140: 173.02 | G140: 75.51082867
A141: 155.5322027 | B141: 52.91640267 | C141: 65.79458266 | D141: 165.84752 | F141: 173.2 | G141: 75.61083694
A142: 169.884342 | B142: 67.18471753 | C142: 73.76865243 | D142: 43.34819874 | F142: 173.38 | G142: 75.7108452
A143: 157.9085755 | B143: 53.81594069 | C143: 67.11489891 | D143: 176.8622897 | F143: 173.56 | G143: 75.81085347
A144: 174.821502 | B144: 63.92124726 | C144: 76.51174583 | D144: 158.520654 | F144: 173.74 | G144: 75.91086173
A145: 174.2912579 | B145: 66.83821488 | C145: 76.21714141 | D145: 87.96426288 | F145: 173.92 | G145: 76.01087
A146: 159.7998226 | B146: 53.2768806 | C146: 68.16567855 | D146: 221.6763045 | F146: 174.1 | G146: 76.11087826
A147: 166.9037604 | B147: 59.15352023 | C147: 72.11263693 | D147: 167.9387055 | F147: 174.28 | G147: 76.21088653
A148: 163.5809004 | B148: 55.82191857 | C148: 70.266451 | D148: 208.6445172 | F148: 174.46 | G148: 76.3108948
A149: 173.3504534 | B149: 64.70477996 | C149: 75.69442905 | D149: 120.7723871 | F149: 174.64 | G149: 76.41090306
A150: 153.3540666 | B150: 50.95817599 | C150: 64.58440702 | D150: 185.6741721 | F150: 174.82 | G150: 76.51091133
A151: 157.0853162 | B151: 50.74740505 | C151: 66.65749479 | D151: 253.1309557 | F151: 175 | G151: 76.61091959
A152: 178.9551365 | B152: 66.93624835 | C152: 78.8083993 | D152: 140.9479681 | F152: 175.18 | G152: 76.71092786
A153: 165.3806877 | B153: 57.84583855 | C153: 71.26641547 | D153: 180.1118851 | F153: 175.36 | G153: 76.81093613
A154: 174.58516 | B154: 70.50057658 | C154: 76.38043389 | D154: 34.57272198 | F154: 175.54 | G154: 76.91094439
A155: 164.7960162 | B155: 61.51789952 | C155: 70.94157113 | D155: 88.80558647 | F155: 175.72 | G155: 77.01095266
A156: 158.0291712 | B156: 50.97666852 | C156: 67.18190205 | D156: 262.6095937 | F156: 175.9 | G156: 77.11096092
A157: 154.1466093 | B157: 49.98276169 | C157: 65.02474491 | D157: 226.2612593 | F157: 176.08 | G157: 77.21096919
A158: 167.3749387 | B158: 63.23806871 | C158: 72.37442428 | D158: 83.47299317 | F158: 176.26 | G158: 77.31097746
A159: 164.972384 | B159: 57.34996807 | C159: 71.03956131 | D159: 187.4049632 | F159: 176.44 | G159: 77.41098572
A160: 175.2317154 | B160: 69.61951588 | C160: 76.73966104 | D160: 50.69646703 | F160: 176.62 | G160: 77.51099399
A161: 179.5066166 | B161: 74.24433098 | C161: 79.11480243 | D161: 23.72149216 | F161: 176.8 | G161: 77.61100225
A162: 160.4489887 | B162: 55.73894734 | C162: 68.5263562 | D162: 163.5178254 | F162: 176.98 | G162: 77.71101052
A163: 176.1446929 | B163: 64.92265994 | C163: 77.24691266 | D163: 151.8872052 | F163: 177.16 | G163: 77.81101879
A164: 157.3352301 | B164: 52.14919802 | C164: 66.79634734 | D164: 214.5389832 | F164: 177.34 | G164: 77.91102705
A165: 152.412858 | B165: 52.15818116 | C165: =$K$1*A165+$K$2 -> 64.06147013 | D165: 141.6882883 | F165: 177.52 | G165: =$K$1*F165+$K$2 -> 78.01103532
A166: 162.3766458 | B166: 59.31065767 | C166: 69.59736535 | D166: 105.8163549 | F166: 177.7 | G166: 78.11104358
A167: 155.4369664 | B167: 51.97446278 | C167: 65.74166923 | D167: 189.5359735 | F167: 177.88 | G167: 78.21105185
A168: 168.4559262 | B168: 62.29479768 | C168: 72.97502251 | D168: 114.0672024 | F168: 178.06 | G168: 78.31106012
A169: 169.911232 | B169: 61.88783412 | C169: 73.78359257 | D169: 141.5090691 | F169: 178.24 | G169: 78.41106838
A170: 176.570996 | B170: 69.69722186 | C170: 77.48376732 | D170: 60.63029021 | F170: 178.42 | G170: 78.51107665
A171: 163.566978 | B171: 57.16021587 | C171: 70.25871567 | D171: 171.5706968 | F171: 178.6 | G171: 78.61108491
A172: 155.0537646 | B172: 51.93587285 | C172: 65.52876172 | D172: 184.766628 | F172: 178.78 | G172: 78.71109318
A173: 170.141387 | B173: 63.62252713 | C173: 73.91146702 | D173: 105.8622842 | F173: 178.96 | G173: 78.81110145
A174: 156.2888753 | B174: 53.98575654 | C174: 66.21499109 | D174: 149.5541775 | F174: 179.14 | G174: 78.91110971
A175: 169.846251 | B175: 63.19637382 | C175: 73.74748904 | D175: 111.3260323 | F175: 179.32 | G175: 79.01111798
A176: 170.9324563 | B176: 60.78257733 | C176: 74.35098628 | D176: 184.1017213 | F176: 179.5 | G176: 79.11112624
A177: 157.3367214 | B177: 52.87219912 | C177: 66.79717592 | D177: 193.9049788 | F177: 179.68 | G177: 79.21113451
A178: 169.6308696 | B178: 59.36202538 | C178: 73.62782283 | D178: 203.5129768 | F178: 179.86 | G178: 79.31114278
A179: 157.180059 | B179: 51.28849043 | C179: 66.71013402 | D179: 237.8270909 | F179: 180.04 | G179: 79.41115104
A180: 152.2394621 | B180: 50.26979827 | C180: 63.96513113 | D180: 187.5621422 | F180: 180.22 | G180: 79.51115931
A181: 156.8243837 | B181: 55.75878369 | C181: 66.51252034 | D181: 115.6428519 | F181: 180.4 | G181: 79.61116757
A182: 174.5413148 | B182: 69.64955297 | C182: 76.35607344 | D182: 44.9774169 | F182: 180.58 | G182: 79.71117584
A183: 167.0674253 | B183: 62.27023917 | C183: 72.20356934 | D183: 98.67104825 | F183: 180.76 | G183: 79.81118411
A184: 172.4659932 | B184: 66.34597562 | C184: 75.20302165 | D184: 78.44726449 | F184: 180.94 | G184: 79.91119237
A185: 170.0252724 | B185: 60.16247847 | C185: 73.84695357 | D185: 187.264859 | F185: 181.12 | G185: 80.01120064
A186: 153.8082969 | B186: 48.8684569 | C186: 64.83677805 | D186: 254.9872803 | F186: 181.3 | G186: 80.1112089
A187: 164.6011233 | B187: 62.85268156 | C187: 70.83328835 | D187: 63.69008485 | F187: 181.48 | G187: 80.21121717
A188: 157.4470103 | B188: 54.50104571 | C188: 66.85845257 | D188: 152.7055044 | F188: 181.66 | G188: 80.31122544
A189: 159.4540358 | B189: 57.29282679 | C189: 67.97355889 | D189: 114.0780383 | F189: 181.84 | G189: 80.4112337
A190: 160.0636518 | B190: 53.73341308 | C190: 68.31226246 | D190: 212.5428495 | F190: 182.02 | G190: 80.51124197
A191: 173.4676766 | B191: 62.83460107 | C191: 75.75955847 | D191: 167.0545238 | F191: 182.2 | G191: 80.61125023
A192: 170.3612244 | B192: 62.2131019 | C192: 74.03360902 | D192: 139.7243886 | F192: 182.38 | G192: 80.7112585
A193: 153.7190723 | B193: 48.62900245 | C193: 64.78720474 | D193: 261.0875013 | F193: 182.56 | G193: 80.81126677
A194: 150.7829654 | B194: 51.37125791 | C194: 63.1558994 | D194: =(ABS(B194-C194))^2 -> 138.877775 | F194: 182.74 | G194: 80.91127503
A195: 170.9473586 | B195: 60.63742685 | C195: 74.35926605 | D195: 188.2888709 | F195: =F194+$H$2 -> 182.92 | G195: 81.0112833
A196: 156.7310965 | B196: 49.77368988 | C196: 66.46068982 | D196: 278.455967 | F196: 183.1 | G196: 81.11129156
A197: 172.5225306 | B197: 68.78262317 | C197: 75.23443391 | D197: 41.62586186 | F197: 183.28 | G197: 81.21129983
A198: 153.2855737 | B198: 51.96405605 | C198: 64.54635227 | D198: 158.3141781 | F198: 183.46 | G198: 81.3113081
A199: 162.9141927 | B199: 59.70229544 | C199: 69.89602719 | D199: 103.912167 | F199: 183.64 | G199: 81.41131636
A200: 169.4228375 | B200: 64.8579891 | C200: 73.51223987 | D200: 74.89605632 | F200: 183.82 | G200: 81.51132463
